bitfinex-derivatives/quotes_ETHF0:USTF0_20260223
["timestamp","ask_amount","ask_price","bid_price","bid_amount"]
[1771857398072,0.27241083,1912.3,1911.0,1.90485256]
[1771857398470,6.43407,1911.9,1911.1,6.88952222]
[1771857398675,0.26157,1911.7,1910.4,1.76696425]
[1771857398872,0.2616,1911.5,1910.4,1.76696425]
[1771857399073,0.26670499,1911.5,1910.4,1.76696425]
[1771857400085,6.43208,1912.5,1910.7,0.26171]
[1771857400086,0.28623397,1912.5,1910.7,0.26171]
[1771857400275,0.10074055,1912.2,1910.8,1.76710551]
[1771857400487,0.26149,1912.3,1910.9,1.72911722]
[1771857400773,0.26149,1912.3,1911.0,13.83097954]
[1771857400974,0.72161432,1912.3,1911.2,1.72911722]
[1771857401173,0.72841213,1912.3,1911.2,1.72911722]
[1771857401376,0.72841213,1912.3,1911.1,7.067]
[1771857401377,0.48873396,1912.2,1911.4,1.7148124]
[1771857401575,0.26154,1911.9,1911.0,1.7148124]
[1771857401777,0.74386647,1911.9,1911.0,1.7148124]
[1771857401976,0.48232647,1912.2,1911.0,1.7148124]
[1771857402673,0.00679781,1912.3,1911.0,1.7148124]
[1771857402878,0.00679781,1912.3,1911.2,1.73568687]
[1771857403275,0.2615,1912.2,1911.2,1.73568687]
[1771857403475,0.43374019,1912.1,1911.3,1.7359078]
[1771857403873,0.2615,1912.2,1911.3,1.7359078]
[1771857404075,0.68889958,1912.0,1911.3,1.7359078]
[1771857404378,0.26155,1911.8,1911.1,8.79827204]
[1771857404575,0.26158,1911.6,1910.9,1.73327204]
[1771857404776,0.26158,1911.6,1910.6,1.73327204]
[1771857404777,0.68787965,1911.4,1910.6,1.73327204]
[1771857404976,0.42626965,1911.8,1910.6,1.73327204]
[1771857405377,0.26157,1911.7,1910.6,1.73327204]
[1771857405577,0.42582024,1911.2,1910.2,1.7400756]
[1771857405880,0.26176,1910.3,1909.7,1.73350117]
[1771857406077,0.68126391,1910.1,1909.4,1.73350117]
[1771857406274,0.41947391,1910.1,1909.4,1.73350117]
[1771857406579,0.42349981,1910.3,1909.4,1.73350117]
[1771857406775,0.26175,1910.4,1909.4,1.73350117]
[1771857406976,0.26605687,1910.4,1909.4,1.73906542]
[1771857407177,0.68327181,1910.4,1909.4,1.73906542]
[1771857407379,0.67898494,1910.2,1909.4,1.73906542]
[1771857407878,0.26177,1910.2,1909.4,1.73906542]
[1771857408973,7.1570223,1910.2,1909.4,1.73906542]
[1771857409178,0.26177,1910.2,1909.4,1.73906542]
[1771857409380,0.71669944,1910.2,1909.4,1.73906542]
[1771857409580,0.2618,1910.0,1909.4,1.73906542]
[1771857410984,0.00430687,1910.4,1909.4,1.73906542]
[1771857411185,0.26176,1910.3,1909.4,1.73906542]
[1771857411386,0.70552805,1910.3,1909.5,7.046]
[1771857411578,0.4374551,1909.6,1908.2,1.9305999]
[1771857411780,0.4374551,1909.9,1908.4,1.9305999]
[1771857411991,0.26181,1910.0,1908.4,1.9305999]
[1771857412185,0.26181,1910.0,1908.7,1.9305999]
[1771857412382,0.26181,1910.0,1908.9,1.9305999]
[1771857412786,0.26181,1910.0,1908.9,1.9354008]
[1771857413487,0.26181,1910.0,1909.1,1.9305999]
[1771857413682,7.46975555,1910.0,1909.2,8.9735999]
[1771857413881,6.4411,1909.8,1909.2,1.9305999]
[1771857414088,6.4411,1909.8,1908.9,0.0048009]
[1771857414089,0.76749555,1909.3,1908.9,0.0048009]
[1771857414390,1.02286918,1909.2,1908.6,1.9305999]
[1771857414588,1.02286918,1909.2,1907.4,1.9305999]
[1771857414785,1.02286918,1909.2,1908.3,1.9305999]
[1771857415088,7.46599918,1909.2,1908.4,1.9305999]
[1771857415289,0.26191,1909.2,1908.4,1.9305999]
[1771857415487,0.26191,1909.2,1908.4,1.93478867]
[1771857415884,0.26191,1909.2,1908.6,1.9305999]
[1771857416084,0.26191,1909.2,1908.4,0.00418877]
[1771857416085,1.00807879,1909.2,1908.4,1.93478867]
[1771857416686,0.26191,1909.2,1908.6,1.9305999]
[1771857417086,0.26191,1909.2,1908.7,1.9305999]
[1771857417286,0.77961579,1909.5,1908.9,1.9305999]
[1771857417488,0.77889611,1909.7,1908.9,1.9305999]
[1771857417691,0.26184,1909.7,1908.9,1.9305999]
[1771857418188,0.26184,1909.7,1909.0,7.03]
[1771857418390,0.26184,1909.7,1909.0,8.9605999]
[1771857418590,0.26187,1909.5,1908.7,1.9305999]
[1771857418789,0.78155664,1909.9,1908.9,1.9305999]
[1771857418990,0.26183,1909.8,1908.9,1.9305999]
[1771857419190,6.44313,1909.2,1908.5,1.9305999]
[1771857419392,2.03077169,1908.6,1907.7,1.9305999]
[1771857419591,2.03077169,1908.6,1907.8,1.9305999]
[1771857420088,0.26202,1908.4,1907.8,8.9565999]
[1771857420490,0.26645174,1908.4,1907.8,1.93993161]
[1771857420687,0.26645174,1908.4,1907.8,1.93574284]
[1771857421382,0.26196,1908.9,1908.0,1.9305999]
[1771857421790,2.03078169,1908.5,1907.8,0.00514294]
[1771857421986,0.26201,1908.5,1907.9,1.93478867]
[1771857422386,0.26201,1908.5,1906.7,47.34277565]
[1771857422387,0.26212,1907.7,1906.9,1.9305999]
[1771857422582,6.44758,1907.9,1906.9,1.9305999]
[1771857422788,6.45646,1905.3,1904.3,6.49349507]
[1771857422999,11.66996,1905.7,1904.5,2.11304341]
[1771857423288,0.26232,1906.3,1904.7,2.11304341]
[1771857423594,0.26232,1906.3,1904.5,0.00533936]
[1771857423595,6.45493,1905.8,1904.9,2.1100417]
[1771857423786,0.65194588,1905.3,1904.5,0.00533936]
[1771857424085,5.215,1905.8,1904.7,2.1100417]
[1771857424291,0.00379537,1905.8,1904.9,2.05315002]
[1771857425088,0.87304799,1905.8,1904.8,2.05315002]
[1771857425284,0.00379537,1905.8,1904.8,2.05315002]
[1771857425486,0.00379537,1905.8,1905.0,2.0472409]
[1771857425887,0.88107085,1906.4,1904.5,6.46404936]
[1771857425888,7.31615423,1906.2,1905.2,2.0472409]
[1771857426085,0.86288423,1906.2,1905.2,2.0472409]
[1771857426285,0.86288423,1906.4,1905.4,1.94939397]
[1771857426586,1.05857809,1906.7,1905.6,1.94939397]
[1771857426784,1.06315993,1906.7,1905.6,1.94939397]
[1771857426987,0.00458184,1906.7,1905.6,1.94939397]
[1771857427189,0.00458184,1906.7,1905.8,1.94939397]
[1771857427495,6.44831,1907.7,1906.0,1.95076574]
[1771857427691,1.03803142,1907.8,1906.0,1.95076574]
[1771857428001,1.02008011,1908.6,1906.8,1.95076574]
[1771857428291,7.49642424,1909.1,1907.1,1.93432868]
[1771857428492,0.00565861,1909.1,1907.5,1.93432868]
[1771857428791,7.46773806,1909.0,1907.7,1.93432868]
[1771857428985,6.44549,1908.6,1907.9,1.93432868]
[1771857429285,8.21460169,1908.4,1907.6,1.9305999]
[1771857429484,1.76877169,1908.4,1907.6,8.7725999]
[1771857430195,0.26197,1908.8,1907.7,1.9305999]
[1771857430390,0.26197,1908.8,1907.8,1.9305999]
[1771857430589,1.76877169,1909.0,1907.8,1.9305999]
[1771857430784,1.76877169,1909.0,1908.0,1.9305999]
[1771857431188,0.00565861,1909.1,1908.2,1.9305999]
[1771857431395,1.76877169,1909.9,1908.2,1.9305999]
[1771857431693,1.76877169,1909.9,1907.9,7.095]
[1771857431694,1.76877169,1909.9,1908.4,1.9305999]
[1771857431888,8.20987169,1909.9,1908.4,1.9305999]
[1771857432192,8.20987169,1909.9,1908.6,1.9305999]
[1771857432386,8.21542824,1909.9,1908.6,1.93590104]
[1771857432592,1.77432824,1909.9,1908.6,1.93590104]
[1771857432990,1.76877169,1909.7,1908.8,1.9305999]
[1771857433394,1.76877169,1909.7,1908.9,7.094]
[1771857433690,1.76877169,1909.7,1908.9,9.0245999]
[1771857434196,1.76877169,1909.7,1909.0,7.096]
[1771857435196,1.76877169,1909.7,1908.9,1.9305999]
[1771857435493,0.26183,1909.8,1908.9,1.9305999]
[1771857435695,1.77432824,1909.9,1908.9,1.9305999]
[1771857436197,0.00555655,1909.9,1908.9,1.9305999]
[1771857436397,0.00555655,1909.9,1909.1,1.9305999]
[1771857437097,8.46941169,1910.5,1909.1,1.9305999]
[1771857437294,1.76877169,1910.4,1909.3,1.9305999]
[1771857437491,0.26174,1910.5,1909.3,1.9305999]
[1771857437898,0.26174,1910.5,1909.4,6.73258341]
[1771857438194,0.00651596,1910.5,1909.5,2.17122567]
[1771857438597,6.43977,1910.2,1909.6,2.17122567]
[1771857438801,1.85694176,1910.0,1909.3,2.17122567]
[1771857438996,1.85694176,1910.0,1909.3,9.01422567]
[1771857439298,1.85694176,1910.0,1908.6,0.00530114]
[1771857439299,1.83115252,1909.8,1908.9,2.20733614]
[1771857439597,1.83115252,1909.8,1909.1,2.20733614]
[1771857439797,0.26182,1909.9,1909.1,2.20733614]
[1771857439997,1.80424166,1910.4,1909.1,2.20733614]
[1771857440203,1.80424166,1910.4,1909.3,2.20733614]
[1771857440401,6.70121,1910.3,1909.3,2.20733614]
[1771857440700,8.48715906,1910.3,1909.4,9.28733614]
[1771857440897,8.48715906,1910.3,1909.5,7.082]
[1771857441100,0.26175,1910.4,1909.7,2.20733614]
[1771857441593,8.4554742,1910.4,1909.7,2.20733614]
[1771857441792,0.26175,1910.4,1909.7,2.20733614]
[1771857441992,0.26175,1910.4,1909.7,9.29333614]
[1771857442200,6.70097,1910.4,1909.7,9.29333614]
[1771857442496,0.2618,1910.0,1909.3,2.20733614]
[1771857442697,0.2618,1910.0,1909.5,2.20733614]
[1771857442893,0.00651596,1910.5,1909.5,2.20733614]
[1771857443293,1.72876837,1910.5,1909.5,2.20733614]
[1771857443901,1.72876837,1910.5,1909.6,9.29033614]
[1771857444101,1.9579014,1910.4,1909.5,7.082]
[1771857444304,1.9579014,1910.4,1909.5,7.083]
[1771857444499,1.69063483,1910.3,1909.5,7.083]
[1771857444701,1.92657617,1909.8,1909.0,2.20733614]
[1771857446098,0.26183,1909.8,1909.0,2.20733614]
[1771857446405,1.63454116,1910.1,1909.0,2.20733614]
[1771857446603,1.63454116,1910.1,1908.0,47.24687]
[1771857446604,1.63454116,1910.1,1909.2,2.20733614]
[1771857447302,1.8608629,1910.0,1909.2,2.20733614]
[1771857447495,1.5990629,1909.9,1909.2,2.20733614]
[1771857447700,0.26183,1909.8,1908.7,2.20733614]
[1771857448203,0.26183,1909.8,1908.8,2.20733614]
[1771857448701,0.26186,1909.6,1908.8,2.20733614]
[1771857448900,1.81529623,1909.6,1908.8,2.20733614]
[1771857449099,8.25711623,1909.6,1908.8,2.20733614]
[1771857449300,0.26188,1909.4,1908.8,2.20733614]
[1771857449501,0.26188,1909.4,1908.6,2.21263728]
[1771857451400,6.70505,1909.2,1908.6,2.21263728]
[1771857451592,8.19257388,1908.8,1908.0,2.20733614]
[1771857452098,6.70789,1908.4,1907.7,2.20733614]
[1771857452404,0.26208,1908.0,1907.4,2.20733614]
[1771857452600,0.26201,1908.5,1907.4,2.21268366]
[1771857453006,0.26207,1908.1,1907.4,2.21268366]
[1771857453403,8.13745544,1908.1,1907.4,0.00534752]
[1771857453602,0.26211,1907.8,1907.4,2.21268366]
[1771857453804,0.26208,1908.0,1907.4,2.21268366]
[1771857454402,8.64937233,1907.6,1906.8,2.20733614]
[1771857454597,2.20080233,1907.6,1906.8,2.20733614]
[1771857454999,0.26216,1907.4,1906.8,2.20733614]
[1771857455201,2.1768807,1907.9,1906.8,2.20733614]
[1771857455408,2.1768807,1907.9,1906.8,2.21122906]
[1771857455703,0.26215,1907.5,1906.8,2.21122906]
[1771857456004,2.18812935,1907.5,1906.8,0.00389292]
[1771857456313,0.2622,1907.1,1906.4,2.20733614]
[1771857456805,0.2622,1907.1,1906.1,2.20733614]
[1771857457004,2.18818382,1907.0,1906.1,2.20733614]
[1771857457204,2.18818382,1906.8,1906.1,2.20733614]
[1771857457398,2.18818382,1906.8,1906.1,2.21263859]
[1771857457796,0.26223,1906.9,1906.1,2.21263859]
[1771857458410,2.18818382,1907.3,1906.1,2.21263859]
[1771857458607,0.26216,1907.4,1906.2,6.90473122]
[1771857458909,0.26216,1907.4,1906.3,2.20733614]
[1771857459608,6.70992,1907.9,1906.5,2.20733614]
[1771857459909,0.00402006,1908.1,1906.8,2.20733614]
[1771857460202,0.26202,1908.5,1907.2,2.20733614]
[1771857460408,2.45020382,1908.5,1907.2,2.20733614]
[1771857460710,0.26206,1908.1,1907.2,2.20733614]
[1771857461098,0.26615259,1908.1,1907.2,2.20733614]
[1771857461298,0.262,1908.6,1907.4,2.20733614]
[1771857461505,2.45020382,1908.4,1907.4,2.20733614]
[1771857461806,2.45020382,1908.4,1906.8,2.20733614]
[1771857462211,2.18818382,1908.1,1906.9,2.20733614]
[1771857462502,0.00507451,1908.1,1907.0,6.76962132]
[1771857462807,0.00507451,1908.1,1907.1,2.20733614]
[1771857463209,2.18818382,1907.9,1907.1,2.20733614]
[1771857465207,2.45028382,1907.8,1907.1,2.20733614]
[1771857465508,2.45026382,1908.0,1907.1,2.20733614]
[1771857465709,2.45026382,1908.0,1906.9,2.20733614]
[1771857467008,2.18818382,1908.8,1907.3,2.20733614]
[1771857467205,2.18818382,1908.8,1907.4,2.20733614]
[1771857467407,11.30104121,1908.9,1907.5,2.20733614]
[1771857467700,2.18818382,1909.3,1908.0,0.26208]
[1771857468106,2.19234057,1909.3,1908.1,6.75625329]
[1771857468308,2.19234057,1909.3,1908.2,0.01296212]
[1771857468510,2.19234057,1909.3,1907.7,0.94798403]
[1771857468705,0.00415675,1909.3,1908.4,0.27148338]
[1771857468910,2.68608215,1909.9,1908.4,0.27148338]
[1771857469104,2.68608215,1909.9,1908.6,0.27148338]
[1771857469306,2.71016933,1909.3,1908.3,0.22330904]
[1771857469505,2.71016933,1909.3,1908.4,6.86361522]
[1771857469702,10.61286047,1910.0,1908.5,0.22330904]
[1771857469703,2.71016933,1909.6,1908.5,0.22330904]
[1771857470008,2.71016933,1909.9,1908.7,0.89554306]
[1771857470408,2.76448931,1910.2,1908.9,0.7869031]
[1771857470710,2.76448931,1910.2,1909.1,0.75835667]
[1771857471006,3.14833867,1910.2,1909.2,6.9380007]
[1771857471211,3.14833867,1910.2,1909.2,6.9430223]
[1771857471411,3.14833867,1910.2,1909.2,0.0050216]
[1771857471912,0.00467103,1910.2,1909.4,0.67505981]
[1771857472704,3.21122622,1910.2,1909.4,0.67505981]
[1771857474410,9.41312047,1911.4,1909.6,0.48989917]
[1771857474411,3.47086231,1911.1,1909.6,0.48989917]
[1771857474815,3.20921231,1911.1,1909.8,0.4655919]
[1771857475421,3.20921231,1911.1,1910.0,0.46994668]
[1771857475422,3.21293303,1911.1,1910.0,0.46994668]
[1771857475714,3.21293303,1911.1,1910.0,0.4740385]
[1771857476111,3.21293303,1911.1,1910.1,7.37588961]
[1771857476515,3.21293303,1911.1,1910.2,0.42233837]
[1771857476718,3.21293303,1911.1,1910.1,6.92980662]
[1771857477105,9.91766723,1911.0,1910.0,0.00409182]
[1771857477306,3.21708551,1910.7,1910.0,0.00409182]
[1771857477611,3.21708551,1910.5,1909.4,0.40610191]
[1771857478312,3.21708551,1910.5,1909.5,6.80723988]
[1771857478516,3.21708551,1910.5,1909.5,0.00400114]
[1771857478817,3.21708551,1910.5,1909.6,0.30766656]
[1771857479512,3.24479432,1910.3,1909.5,0.00400114]
[1771857479713,3.24479432,1910.1,1909.5,0.00400114]
[1771857480215,3.24479432,1910.4,1909.5,0.00400114]
[1771857480610,3.25569578,1910.2,1909.5,0.00400114]
[1771857481616,3.25569578,1910.2,1908.8,41.0346101]
[1771857481816,0.26179,1910.1,1908.8,41.0346101]
[1771857482119,3.25377087,1910.0,1908.9,6.95999967]
[1771857482314,6.43914,1910.4,1908.9,6.95999967]
[1771857482315,3.24107933,1909.8,1908.9,6.95999967]
[1771857482518,3.24107933,1909.8,1908.9,6.73149629]
[1771857482824,3.24107933,1910.3,1909.1,0.24078917]
[1771857483322,3.24107933,1910.3,1909.3,0.24078917]
[1771857483822,3.24107933,1910.3,1909.4,6.82593888]
[1771857484022,4.17584119,1911.1,1909.5,0.22507802]
[1771857484023,3.23922558,1910.8,1909.5,0.22507802]
[1771857484221,3.25061543,1910.4,1909.3,0.20229832]
[1771857484516,3.25061543,1910.4,1909.4,6.78183339]
[1771857484724,3.25061543,1910.9,1909.5,0.20229832]
[1771857485316,3.25061543,1910.7,1909.5,0.20229832]
[1771857485515,3.25061543,1910.7,1909.7,0.18675817]
[1771857485917,0.00372072,1911.1,1909.7,0.18675817]
[1771857485918,3.24870904,1911.0,1909.9,0.16747074]
[1771857486412,3.24870904,1911.0,1910.1,0.17594167]
[1771857486819,3.24870904,1911.0,1909.7,0.26183]
[1771857486820,2.62985476,1910.6,1910.2,3.36275125]
[1771857487023,2.62985476,1910.6,1909.7,2.53480117]
[1771857487221,2.62985476,1911.0,1909.9,2.53480117]
[1771857488322,2.62985476,1911.0,1910.1,2.53480117]
[1771857488822,2.62985476,1911.0,1909.9,2.53480117]
[1771857489125,2.62985476,1910.8,1909.9,2.53480117]
[1771857489327,2.62985476,1910.8,1909.6,2.53480117]
[1771857489528,2.62985476,1910.6,1909.6,2.53480117]
[1771857489920,2.62985476,1910.4,1909.2,2.53480117]
[1771857490321,2.62985476,1910.4,1909.3,2.53480117]
[1771857490816,2.62985476,1910.4,1909.5,2.53480117]
[1771857491020,2.62985476,1910.4,1909.1,0.26192]
[1771857491021,2.62985476,1910.4,1909.3,2.53480117]
[1771857491219,5.241,1910.7,1909.3,6.76354716]
[1771857491220,2.62985476,1910.2,1909.3,6.76354716]
[1771857491427,2.62985476,1910.0,1908.9,2.54090789]
[1771857492021,2.62985476,1910.0,1909.0,6.80119859]
[1771857492216,2.62985476,1910.0,1909.1,2.53480117]
[1771857492924,2.62985476,1910.0,1909.3,2.53480117]
[1771857493126,2.62985476,1910.2,1909.3,2.53480117]
[1771857493329,2.62985476,1910.2,1909.4,6.65485127]
[1771857493518,2.62985476,1910.2,1909.3,2.53480117]
[1771857494224,2.62985476,1910.5,1909.5,2.53480117]
[1771857494729,2.62985476,1910.5,1909.2,2.53480117]
[1771857495130,2.62985476,1910.5,1909.4,2.53480117]
[1771857495425,0.26175,1910.4,1909.4,2.53480117]
[1771857495631,2.62985476,1910.3,1909.2,2.53480117]
[1771857497629,3.16555848,1910.1,1908.9,0.00610672]
[1771857497831,3.16555848,1909.8,1908.9,0.00610672]
[1771857498129,3.16555848,1909.8,1908.9,3.21440797]
[1771857498336,3.16555848,1909.8,1909.0,6.83591138]
[1771857498636,3.16555848,1909.8,1908.9,0.00610672]
[1771857499332,3.16836475,1909.6,1908.9,0.00610672]
[1771857499633,3.17465383,1909.6,1908.9,0.00610672]
[1771857500035,3.43023475,1909.5,1908.1,3.3114387]
[1771857500234,3.43023475,1909.5,1908.3,3.3114387]
[1771857500939,3.43023475,1909.5,1908.3,3.31564345]
[1771857501133,3.16836475,1909.2,1908.3,0.00420475]
[1771857501327,0.2619,1909.3,1908.3,0.00420475]
[1771857501328,3.16836475,1909.0,1908.3,0.00420475]
[1771857501733,3.16836475,1909.0,1908.3,3.31564345]
[1771857501930,3.16836475,1909.0,1908.3,0.00420475]
[1771857502638,3.16836475,1909.0,1908.3,3.31564345]
[1771857503837,3.16836475,1909.5,1908.3,3.31564345]
[1771857504039,0.00628908,1909.6,1908.7,3.3114387]
[1771857504339,3.16836475,1909.9,1909.0,3.5733787]
[1771857504835,3.16836475,1910.5,1909.4,3.3114387]
[1771857505132,3.16836475,1910.5,1909.6,3.3114387]
[1771857505333,0.0066594,1910.5,1909.8,3.3114387]
[1771857505532,0.0066594,1910.5,1909.8,3.31687209]
[1771857505936,3.16836475,1910.8,1910.0,3.3114387]
[1771857506136,11.08593499,1910.9,1910.0,3.3114387]
[1771857506336,11.08593499,1910.9,1910.1,9.97983806]
[1771857506640,3.16836475,1910.8,1910.1,3.3114387]
[1771857506837,3.16836475,1910.8,1910.0,6.77102006]
[1771857507041,3.17211307,1910.8,1910.0,6.77102006]
[1771857507343,3.43381307,1910.8,1909.8,0.00543339]
[1771857507743,3.43381307,1910.8,1909.8,3.31687209]
[1771857507744,3.17211307,1910.8,1909.8,3.31687209]
[1771857507937,3.17211307,1910.8,1909.8,0.00543339]
[1771857508339,3.16836475,1910.6,1909.8,0.00543339]
[1771857508537,3.16836475,1910.4,1909.3,3.3114387]
[1771857509233,3.16836475,1910.4,1909.5,3.3114387]
[1771857509445,3.16836475,1910.4,1909.5,3.31608475]
[1771857509932,3.16836475,1910.4,1909.5,0.00464605]
[1771857510138,3.16836475,1910.2,1909.5,0.00464605]
[1771857510348,3.16836475,1910.2,1909.0,3.3114387]
[1771857511435,3.16836475,1910.2,1909.0,3.31636166]
[1771857511741,3.16836475,1910.2,1909.2,3.3114387]
[1771857512143,3.16836475,1910.2,1909.0,3.57829166]
[1771857512544,3.16836475,1910.2,1909.1,9.96443286]
[1771857513044,3.16836475,1910.2,1909.2,3.3114387]
[1771857513340,3.17211307,1910.8,1909.6,3.3114387]
[1771857513543,3.17211307,1910.8,1909.9,3.3114387]
[1771857513737,0.00374832,1910.8,1909.9,3.3114387]
[1771857513940,3.16836475,1911.0,1910.1,3.3114387]
[1771857514140,3.16836475,1911.7,1910.1,3.3114387]
[1771857514337,3.16836475,1911.7,1910.3,3.3114387]
[1771857514544,3.16836475,1911.5,1910.3,3.3114387]
[1771857514846,3.17392495,1911.5,1910.5,3.3114387]
[1771857515046,3.17392495,1911.5,1910.5,3.31706154]
[1771857515745,3.17392495,1911.5,1910.6,6.82286547]
[1771857516041,3.17392495,1911.5,1910.5,0.00562284]
[1771857517349,3.16836475,1911.1,1909.8,3.3114387]
[1771857517751,3.16836475,1911.1,1909.8,10.03650666]
[1771857518143,3.16836475,1910.9,1909.8,10.03650666]
[1771857518343,3.16836475,1910.9,1909.8,3.31560687]
[1771857518552,3.16836475,1910.9,1909.9,10.17560128]
[1771857519248,3.16836475,1910.9,1909.8,3.31560687]
[1771857519753,3.16836475,1910.9,1910.0,3.3114387]
[1771857520548,3.16836475,1910.7,1909.8,0.00416817]
[1771857521854,3.16836475,1910.5,1909.8,0.00416817]
[1771857523356,3.16836475,1910.3,1909.2,3.3114387]
[1771857523551,3.16836475,1910.3,1909.1,40.8]
[1771857523552,3.43024475,1909.5,1908.3,3.3114387]
[1771857524558,3.43691059,1909.5,1908.3,3.31713066]
[1771857525254,3.16836475,1909.4,1908.3,3.31713066]
[1771857525460,3.16836475,1909.4,1908.5,3.3114387]
[1771857525756,3.16836475,1909.4,1908.4,6.69851219]
[1771857525950,3.16836475,1909.4,1908.4,10.00995089]
[1771857526155,3.16836475,1909.4,1908.4,3.3114387]
[1771857526754,0.00666584,1909.5,1908.6,3.3114387]
[1771857527157,0.00666584,1909.5,1908.8,3.3114387]
[1771857528453,2.96267356,1910.4,1909.0,2.90515818]
[1771857528860,2.96267356,1910.4,1909.2,3.16705818]
[1771857529256,2.96267356,1910.4,1909.4,2.90515818]
[1771857529454,2.96929917,1910.4,1909.4,2.90515818]
[1771857529659,2.96929917,1910.4,1909.5,6.68179759]
[1771857529858,2.96929917,1910.4,1909.3,2.90515818]
[1771857530863,2.96929917,1910.4,1909.5,2.90515818]
[1771857531063,0.00662561,1910.4,1909.7,2.90515818]
[1771857531357,0.00662561,1910.4,1909.6,0.26186]
[1771857531358,2.96267356,1910.2,1909.6,6.62282201]
[1771857531669,2.96267356,1910.1,1909.1,2.90515818]
[1771857531862,2.96267356,1909.9,1909.1,2.90515818]
[1771857532161,2.96267356,1909.9,1908.9,2.90515818]
[1771857532361,2.96267356,1909.7,1908.6,2.90515818]
[1771857532665,2.96267356,1909.7,1908.9,0.00616184]
[1771857533163,2.96267356,1909.7,1908.9,2.91132002]
[1771857533365,2.96267356,1909.9,1909.1,2.90515818]
[1771857533760,2.96267356,1910.3,1909.3,2.90515818]
[1771857534161,2.96267356,1910.3,1909.2,7.18519921]
[1771857534162,2.96267356,1910.3,1909.4,9.63626819]
[1771857534360,2.96267356,1910.3,1909.5,2.90515818]
[1771857534762,0.00662561,1910.4,1909.7,2.90515818]
[1771857535069,2.96267356,1910.9,1909.9,2.90515818]
[1771857535467,2.96267356,1911.1,1910.3,2.90515818]
[1771857536069,2.96903447,1911.1,1910.3,0.00608419]
[1771857536671,2.96903447,1911.1,1910.3,2.91124237]
[1771857537263,2.96903447,1911.1,1910.3,0.00608419]
[1771857538461,2.96267356,1910.9,1910.3,0.00608419]
[1771857538864,2.96267356,1910.9,1910.3,2.91124237]
[1771857539273,2.96267356,1910.9,1910.3,0.00608419]
[1771857539976,2.96903447,1911.1,1910.3,2.91124237]
[1771857540770,2.96903447,1911.1,1910.3,0.00608419]
[1771857540971,2.96903447,1911.1,1910.3,2.91124237]
[1771857541268,0.2616,1911.5,1910.3,2.91124237]
[1771857541269,2.96267356,1911.2,1910.4,6.733978]
[1771857541474,2.96267356,1911.2,1910.3,0.00608419]
[1771857541677,2.96267356,1910.8,1909.6,2.90515818]
[1771857541870,2.96267356,1910.6,1909.6,2.90515818]
[1771857542069,2.96267356,1910.6,1909.8,2.90515818]
[1771857542278,2.96267356,1911.1,1909.8,2.90515818]
[1771857542480,2.96267356,1910.9,1909.6,9.80669529]
[1771857542673,2.96267356,1910.7,1909.6,0.00553274]
[1771857542976,2.96267356,1910.7,1909.2,0.2619]
[1771857542977,0.26177,1910.2,1909.0,2.90515818]
[1771857543270,0.26174,1910.5,1909.0,2.90515818]
[1771857543475,2.96267356,1910.2,1909.0,2.90515818]
[1771857543868,2.96267356,1910.2,1909.1,2.90515818]
[1771857544071,2.96267356,1910.2,1909.1,2.91124741]
[1771857544271,2.96267356,1910.2,1909.2,6.82728858]
[1771857544770,2.96267356,1910.0,1909.2,6.82728858]
[1771857544972,2.96267356,1910.0,1909.1,0.00608923]
[1771857546270,2.96267356,1910.4,1909.1,2.91124741]
[1771857546471,2.96267356,1910.4,1909.2,6.67442764]
[1771857546774,2.96267356,1910.4,1909.3,2.90515818]
[1771857546976,2.96267356,1910.4,1909.2,6.67442764]
[1771857547173,2.96267356,1910.4,1909.2,9.57958582]
[1771857547374,2.96267356,1910.4,1909.3,2.90515818]
[1771857547877,2.96267356,1910.4,1909.4,6.7510201]
[1771857548075,2.96267356,1910.4,1909.4,9.65617828]
[1771857548269,2.96267356,1910.4,1909.4,2.90515818]
[1771857548475,2.96267356,1910.4,1909.4,9.66303976]
[1771857548675,2.96267356,1910.2,1909.1,2.91124741]
[1771857548977,2.96267356,1910.0,1909.1,2.91124741]
[1771857551476,2.96267356,1910.0,1909.1,0.00608923]
[1771857553489,2.96267356,1910.0,1909.1,2.91124741]
[1771857553689,2.96267356,1910.0,1909.2,9.72459066]
[1771857553889,2.96267356,1910.0,1909.2,6.81943248]
[1771857554086,2.96267356,1910.0,1909.1,0.00608923]
[1771857554586,2.96267356,1910.0,1909.3,2.90515818]
[1771857554891,2.96267356,1910.0,1909.1,2.91124741]
[1771857555590,2.96267356,1910.0,1909.3,2.90515818]
[1771857556784,2.96267356,1910.0,1909.1,2.91124741]
[1771857557185,2.96267356,1910.0,1909.2,9.69033266]
[1771857557390,5.241,1910.5,1909.3,2.90515818]
[1771857557694,2.96267356,1910.4,1909.3,2.90515818]
[1771857557885,2.96267356,1910.4,1909.5,3.04165421]
[1771857558793,2.827265,1910.3,1909.5,3.04165421]
[1771857559191,6.30644765,1911.2,1910.2,2.92718113]
[1771857559388,3.30476852,1911.4,1910.2,2.92718113]
[1771857559688,3.30476852,1911.4,1909.9,43.72718113]
[1771857559891,3.30476852,1911.4,1910.0,2.92718113]
[1771857560091,0.26164,1911.2,1910.0,2.92718113]
[1771857560288,3.04315852,1910.9,1909.8,2.92718113]
[1771857560790,3.04315852,1910.9,1909.8,9.73047647]
[1771857560992,3.04315852,1910.7,1909.5,43.72718113]
[1771857561189,3.04315852,1910.7,1909.5,2.92718113]
[1771857561788,3.04315852,1910.5,1909.5,2.92718113]
[1771857561991,3.04315852,1910.5,1909.3,43.72718113]
[1771857562199,3.04315852,1910.3,1909.3,2.92718113]
[1771857563300,3.04315852,1910.3,1909.1,2.93327036]
[1771857563801,3.04315852,1910.3,1909.2,9.71119052]
[1771857564602,3.04315852,1910.3,1909.3,2.92718113]
[1771857564997,3.04315852,1910.3,1909.1,2.93327036]
[1771857565395,3.04315852,1910.3,1909.2,6.70353208]
[1771857565595,3.04315852,1910.3,1909.1,0.00608923]
[1771857565796,3.04315852,1910.0,1909.1,0.00608923]
[1771857566402,3.04315852,1910.0,1909.1,2.93327036]
[1771857567298,3.04315852,1910.0,1909.1,0.00608923]
[1771857567506,3.04315852,1909.9,1909.1,0.00608923]
[1771857568302,3.04315852,1909.8,1908.6,2.92718113]
[1771857568500,3.04315852,1909.6,1908.2,2.92718113]
[1771857568702,3.04315852,1909.3,1908.2,2.92718113]
[1771857568904,3.04315852,1909.2,1908.2,2.92718113]
[1771857569208,3.04315852,1909.2,1907.9,2.92718113]
[1771857569405,3.04703804,1909.2,1907.9,2.93291813]
[1771857569610,3.04315852,1909.0,1908.0,6.80282196]
[1771857570108,0.00387952,1909.2,1907.9,2.93291813]
[1771857570109,3.04315852,1908.8,1907.9,0.005737]
[1771857570505,3.04315852,1908.6,1907.3,2.92718113]
[1771857570705,3.04315852,1908.5,1907.3,2.92718113]
[1771857571306,3.04315852,1908.4,1907.3,2.92718113]
[1771857571607,3.29823798,1907.9,1906.7,2.92718113]
[1771857571802,3.04315852,1907.1,1905.9,2.92718113]
[1771857572006,3.04315852,1907.1,1906.0,6.45389]